bitfinex/quotes_BTCUSD_20250902
["timestamp","ask_amount","ask_price","bid_price","bid_amount"]
[1756842465004,0.91503459,110790.0,110780.0,0.186278]
[1756842465205,0.89555438,110790.0,110780.0,0.186278]
[1756842465713,0.63752475,110790.0,110780.0,0.186278]
[1756842465880,0.61038166,110790.0,110780.0,0.186278]
[1756842467448,0.36498567,110790.0,110780.0,0.186278]
[1756842467662,0.00404685,110790.0,110780.0,0.59765071]
[1756842468490,0.00404685,110790.0,110780.0,0.62720071]
[1756842469457,0.00204685,110790.0,110780.0,0.63612322]
[1756842469866,4.685e-05,110790.0,110780.0,0.63812322]
[1756842470091,4.685e-05,110790.0,110780.0,0.64212322]
[1756842470297,4.685e-05,110790.0,110780.0,0.38427051]
[1756842470504,4.685e-05,110790.0,110780.0,0.79564322]
[1756842471068,4.685e-05,110790.0,110780.0,0.88755921]
[1756842471274,4.685e-05,110790.0,110780.0,0.73403921]
[1756842471469,4.685e-05,110790.0,110780.0,0.88747921]
[1756842471667,4.685e-05,110790.0,110780.0,0.73403921]
[1756842471916,4.685e-05,110790.0,110780.0,0.88747921]
[1756842473307,4.685e-05,110790.0,110780.0,0.73403921]
[1756842473525,4.685e-05,110790.0,110780.0,0.88747921]
[1756842474823,4.685e-05,110790.0,110780.0,0.4761065]
[1756842475024,4.685e-05,110790.0,110780.0,0.88747921]
[1756842476288,4.685e-05,110790.0,110780.0,0.73403921]
[1756842476500,4.685e-05,110790.0,110780.0,0.88743921]
[1756842476700,4.685e-05,110790.0,110780.0,0.85788921]
[1756842478078,4.685e-05,110790.0,110780.0,0.70448921]
[1756842478294,4.685e-05,110790.0,110780.0,0.85788921]
[1756842478541,4.685e-05,110790.0,110780.0,0.4465165]
[1756842478754,4.685e-05,110790.0,110780.0,0.85788921]
[1756842479439,4.685e-05,110790.0,110780.0,0.4465165]
[1756842479666,4.685e-05,110790.0,110780.0,0.85788921]
[1756842480222,4.685e-05,110790.0,110780.0,0.70448921]
[1756842480434,4.685e-05,110790.0,110780.0,0.85792921]
[1756842482743,1e-08,110790.0,110780.0,1.46712921]
[1756842482954,1e-08,110790.0,110780.0,1.95805192]
[1756842483838,1e-08,110790.0,110780.0,1.95205192]
[1756842484075,1e-08,110790.0,110780.0,1.95605192]
[1756842484318,1e-08,110790.0,110780.0,1.1413065]
[1756842484744,1e-08,110790.0,110780.0,1.1413865]
[1756842486973,1e-08,110790.0,110780.0,1.5413865]
[1756842487484,1e-08,110790.0,110780.0,1.3878665]
[1756842487633,1e-08,110790.0,110780.0,1.5413465]
[1756842488066,1e-08,110790.0,110780.0,1.56847376]
[1756842489643,1e-08,110790.0,110780.0,2.01287376]
[1756842491226,1e-08,110790.0,110780.0,1.85939376]
[1756842491430,1e-08,110790.0,110780.0,2.01275376]
[1756842492052,1e-08,110790.0,110780.0,1.63929258]
[1756842492228,0.07354631,110830.0,110820.0,1.00321825]
[1756842492475,0.07566324,110830.0,110820.0,1.25045424]
[1756842492649,0.07359324,110830.0,110820.0,1.25365424]
[1756842492858,4.693e-05,110830.0,110820.0,1.25365424]
[1756842493687,4.693e-05,110830.0,110820.0,1.25465424]
[1756842494260,4.693e-05,110830.0,110820.0,1.10129424]
[1756842494499,0.00211693,110830.0,110820.0,1.26456187]
[1756842495974,4.693e-05,110830.0,110820.0,1.11120187]
[1756842496171,4.693e-05,110830.0,110820.0,1.26452187]
[1756842497223,4.693e-05,110830.0,110820.0,1.11120187]
[1756842497430,4.693e-05,110830.0,110820.0,1.26452187]
[1756842497851,4.693e-05,110830.0,110820.0,1.11120187]
[1756842498064,4.693e-05,110830.0,110820.0,1.26452187]
[1756842498482,4.693e-05,110830.0,110820.0,1.53372187]
[1756842500387,4.693e-05,110830.0,110820.0,1.38040187]
[1756842500606,4.693e-05,110830.0,110820.0,1.53372187]
[1756842502597,4.693e-05,110830.0,110820.0,1.38040187]
[1756842502810,4.693e-05,110830.0,110820.0,1.53372187]
[1756842504417,4.693e-05,110830.0,110820.0,1.57395014]
[1756842510817,0.00211693,110830.0,110820.0,1.42063014]
[1756842511041,0.00211693,110830.0,110820.0,1.57075014]
[1756842511226,0.00211693,110830.0,110820.0,1.57395014]
[1756842511639,4.693e-05,110830.0,110820.0,1.57395014]
[1756842512078,0.00211693,110830.0,110820.0,0.74796472]
[1756842512290,0.00211693,110830.0,110820.0,1.15933743]
[1756842513109,0.00211693,110830.0,110820.0,1.00409743]
[1756842513313,0.00211693,110830.0,110820.0,1.15737743]
[1756842516459,0.00211693,110830.0,110820.0,1.15933743]
[1756842516653,0.00211693,110830.0,110820.0,1.12230916]
[1756842518009,0.00211693,110830.0,110820.0,0.96902916]
[1756842518152,0.00211693,110830.0,110820.0,1.12230916]
[1756842519557,0.00211693,110830.0,110820.0,0.96902916]
[1756842519756,0.00518693,110830.0,110820.0,1.11714916]
[1756842519939,0.00211693,110830.0,110820.0,1.11714916]
[1756842520244,0.00211693,110830.0,110820.0,0.54358882]
[1756842520440,0.00518693,110830.0,110820.0,0.69686882]
[1756842522194,0.00211693,110830.0,110820.0,1.10824153]
[1756842522397,0.00211693,110830.0,110820.0,0.69686882]
[1756842522598,4.693e-05,110830.0,110820.0,0.70188882]
[1756842522984,4.693e-05,110830.0,110820.0,1.11326153]
[1756842525486,4.693e-05,110830.0,110820.0,1.52463424]
[1756842525914,0.48798902,110870.0,110850.0,0.5917967]
[1756842525915,0.02712184,110860.0,110850.0,0.5917967]
[1756842526162,0.07666324,110870.0,110860.0,0.18040772]
[1756842526395,0.10071219,110870.0,110860.0,0.33531254]
[1756842526620,0.10591219,110870.0,110860.0,0.33368772]
[1756842526835,0.03236588,110870.0,110860.0,0.33368772]
[1756842527256,0.00217693,110870.0,110860.0,0.34477903]
[1756842527486,4.693e-05,110870.0,110860.0,0.85103773]
[1756842527719,4.693e-05,110870.0,110860.0,1.26083214]
[1756842528570,0.00104693,110870.0,110860.0,0.43966502]
[1756842528788,4.693e-05,110870.0,110860.0,1.26083214]
[1756842529496,4.693e-05,110870.0,110860.0,1.26183214]
[1756842529720,4.693e-05,110870.0,110860.0,1.26283214]
[1756842529955,0.02430695,110890.0,110860.0,1.27185252]
[1756842530180,0.0002,110910.0,110900.0,0.18034265]
[1756842530389,0.0002,110910.0,110900.0,0.33684544]
[1756842530607,0.0002,110910.0,110900.0,0.74580621]
[1756842530608,0.00237693,110910.0,110900.0,0.74580621]
[1756842530835,0.00237693,110910.0,110900.0,0.18034265]
[1756842531036,0.00237693,110910.0,110900.0,0.33522265]
[1756842531483,0.00237693,110910.0,110900.0,0.33727265]
[1756842531680,0.00237693,110910.0,110900.0,0.33522265]
[1756842531883,0.00237693,110910.0,110900.0,0.18034265]
[1756842532096,0.00237693,110910.0,110900.0,0.33522265]
[1756842532300,0.41296049,110910.0,110900.0,0.33522265]
[1756842532513,0.41296049,110910.0,110900.0,0.18034265]
[1756842532713,0.41603049,110910.0,110900.0,0.33550265]
[1756842533117,0.41603049,110910.0,110900.0,0.18034265]
[1756842533453,0.41603049,110910.0,110900.0,0.33550265]
[1756842534140,0.00237693,110910.0,110900.0,0.33755265]
[1756842534374,0.00237693,110910.0,110900.0,0.33546265]
[1756842534599,0.41296049,110910.0,110900.0,0.33546265]
[1756842535380,0.41296049,110910.0,110900.0,0.18034265]
[1756842535590,0.41296049,110910.0,110900.0,0.33586265]
[1756842536268,0.41603049,110910.0,110900.0,0.33586265]
[1756842537374,0.41603049,110910.0,110900.0,0.18034265]
[1756842537575,0.41296049,110910.0,110900.0,0.33578265]
[1756842538308,0.41296049,110910.0,110900.0,0.33570265]
[1756842538693,0.41296049,110910.0,110900.0,0.18239265]
[1756842538862,0.41296049,110910.0,110900.0,0.33570265]
[1756842538863,0.00237693,110910.0,110900.0,0.33570265]
[1756842539059,0.00237693,110910.0,110900.0,0.33775265]
[1756842539530,0.00237693,110910.0,110900.0,0.33570265]
[1756842540364,0.00544693,110910.0,110900.0,0.33558265]
[1756842540779,0.00237693,110910.0,110900.0,0.33558265]
[1756842541626,0.00237693,110910.0,110900.0,0.18034265]
[1756842541836,0.00237693,110910.0,110900.0,0.33558265]
[1756842542048,0.00237693,110910.0,110900.0,0.34060265]
[1756842542266,0.41296049,110910.0,110900.0,0.33558265]
[1756842542686,0.41296049,110910.0,110900.0,0.33763265]
[1756842542864,0.41296049,110910.0,110900.0,0.33558265]
[1756842543101,0.41296049,110910.0,110900.0,0.33763265]
[1756842543306,0.41296049,110910.0,110900.0,0.33554265]
[1756842543711,0.00307,110920.0,110910.0,0.18032639]
[1756842543911,0.82423712,110920.0,110910.0,0.18032639]
[1756842544144,0.82329712,110920.0,110910.0,0.18032639]
[1756842544389,0.41271356,110920.0,110910.0,0.18194867]
[1756842544594,0.41271356,110920.0,110910.0,0.18491867]
[1756842544803,0.41271356,110920.0,110910.0,0.18329639]
[1756842544986,0.41471356,110920.0,110910.0,0.18329639]
[1756842545162,0.41571356,110920.0,110910.0,0.18329639]
[1756842545771,0.41571356,110920.0,110910.0,0.18032639]
[1756842545975,0.41571356,110920.0,110910.0,0.18194867]
[1756842546594,0.41571356,110920.0,110910.0,0.18032639]
[1756842547035,0.00513,110920.0,110910.0,0.18399867]
[1756842547240,0.41556356,110920.0,110910.0,0.18534639]
[1756842547448,0.41556356,110920.0,110910.0,0.18032639]
[1756842547636,0.41556356,110920.0,110910.0,0.18194867]
[1756842548197,0.41556356,110920.0,110910.0,0.33548639]
[1756842549443,0.44267065,110920.0,110910.0,0.33548639]
[1756842549651,0.03208709,110920.0,110910.0,0.33548639]
[1756842549827,0.44267065,110920.0,110910.0,0.34050639]
[1756842550064,0.03010709,110920.0,110910.0,0.34050639]
[1756842550276,0.03010709,110920.0,110910.0,0.75108995]
[1756842551676,0.003,110920.0,110910.0,0.75108995]
[1756842553301,0.003,110920.0,110910.0,0.59592995]
[1756842553714,0.003,110920.0,110910.0,0.75084995]
[1756842554120,0.0002,110930.0,110920.0,0.18031013]
[1756842554386,0.0002,110930.0,110920.0,0.1848719]
[1756842554589,0.0002,110930.0,110920.0,0.18533013]
[1756842554590,0.00218,110930.0,110920.0,0.18533013]
[1756842554791,0.00218,110930.0,110920.0,0.34021013]
[1756842554951,0.0002,110930.0,110920.0,0.34021013]
[1756842556387,0.0022,110930.0,110920.0,0.75079369]
[1756842556635,0.0022,110930.0,110920.0,0.34021013]
[1756842557049,0.0032,110930.0,110920.0,0.34021013]
[1756842558122,0.0032,110930.0,110920.0,0.34033013]
[1756842559162,0.00518,110930.0,110920.0,0.34033013]
[1756842559420,0.00518,110930.0,110920.0,0.75091369]
[1756842559836,0.0032,110930.0,110920.0,0.75091369]
[1756842562024,0.0032,110930.0,110920.0,0.34033013]
[1756842562224,0.0032,110930.0,110920.0,1.16149725]
[1756842562381,0.0032,110930.0,110920.0,0.34033013]
[1756842562988,0.0032,110930.0,110920.0,0.18533013]
[1756842563174,0.0032,110930.0,110920.0,0.34021013]
[1756842563375,0.41378356,110930.0,110920.0,0.34021013]
[1756842563571,0.41378356,110930.0,110920.0,0.18533013]
[1756842563929,0.41378356,110930.0,110920.0,0.34025013]
[1756842564124,0.41378356,110930.0,110920.0,0.18533013]
[1756842564365,0.41378356,110930.0,110920.0,0.34025013]
[1756842564774,0.0032,110930.0,110920.0,0.34025013]
[1756842564985,0.41378356,110930.0,110920.0,0.34025013]
[1756842565783,0.41378356,110930.0,110920.0,0.34017013]
[1756842566223,0.41378356,110930.0,110920.0,0.34021013]
[1756842567396,0.41576356,110930.0,110920.0,0.18537013]
[1756842567609,0.82634712,110930.0,110920.0,0.15516]
[1756842567829,0.82634712,110930.0,110920.0,0.18035013]
[1756842567830,1.00664099,110930.0,110920.0,0.18035013]
[1756842568067,1.00664099,110930.0,110920.0,4e-05]
[1756842568068,1.30161954,110930.0,110920.0,4e-05]
[1756842568288,1.29576868,110930.0,110920.0,4e-05]
[1756842568970,1.63576868,110930.0,110920.0,4e-05]
[1756842570289,1.63672868,110930.0,110920.0,4e-05]
[1756842571967,1.66103563,110930.0,110920.0,4e-05]
[1756842572110,1.63672868,110930.0,110920.0,4e-05]
[1756842572318,1.66383668,110930.0,110920.0,4e-05]
[1756842573362,2.07442024,110930.0,110920.0,4e-05]
[1756842573610,2.11350634,110930.0,110920.0,4e-05]
[1756842574255,2.14597124,110930.0,110920.0,4e-05]
[1756842574480,2.11350634,110930.0,110920.0,4e-05]
[1756842574918,2.14597124,110930.0,110920.0,4e-05]
[1756842575308,2.11330634,110930.0,110920.0,4e-05]
[1756842575526,2.11326634,110930.0,110920.0,4e-05]
[1756842575770,1.95742634,110930.0,110920.0,4e-05]
[1756842575981,2.11326634,110930.0,110920.0,4e-05]
[1756842576203,2.11326506,110930.0,110920.0,4e-05]
[1756842576408,1.95109221,110930.0,110920.0,4e-05]
[1756842576613,1.68790363,110930.0,110920.0,4e-05]
[1756842576795,1.69634668,110930.0,110920.0,4e-05]
[1756842577318,1.68790363,110930.0,110920.0,4e-05]
[1756842577729,1.53206363,110930.0,110920.0,4e-05]
[1756842577936,1.68624363,110930.0,110920.0,0.00298]
[1756842578148,1.66193668,110930.0,110920.0,0.00298]
[1756842578350,1.66189668,110930.0,110920.0,0.00298]
[1756842579965,0.84072956,110930.0,110920.0,0.00298]
[1756842580169,1.66189668,110930.0,110920.0,4e-05]
[1756842582753,1.66359668,110930.0,110920.0,4e-05]
[1756842583284,1.50605668,110930.0,110920.0,0.00507]
[1756842583462,1.66185668,110930.0,110920.0,0.00298]
[1756842583684,1.66185668,110930.0,110920.0,4e-05]
[1756842584306,1.6424038,110930.0,110920.0,4e-05]
[1756842585176,1.4866038,110930.0,110920.0,4e-05]
[1756842585311,1.6424038,110930.0,110920.0,4e-05]
[1756842585718,1.4866038,110930.0,110920.0,0.18035013]
[1756842585925,1.6403838,110930.0,110920.0,0.00507]
[1756842586129,1.4846238,110930.0,110920.0,0.18538013]
[1756842586349,1.22976024,110930.0,110920.0,0.18538013]
[1756842586559,1.6403438,110930.0,110920.0,0.18538013]
[1756842586758,1.6403438,110930.0,110920.0,0.00507]
[1756842586961,1.6423238,110930.0,110920.0,0.00507]
[1756842587676,1.23159111,110930.0,110920.0,0.00507]
[1756842587885,1.23159111,110930.0,110920.0,4e-05]
[1756842588985,1.66902928,110930.0,110920.0,4e-05]
[1756842590019,1.23155111,110930.0,110920.0,4e-05]
[1756842590612,1.23151111,110930.0,110920.0,4e-05]
[1756842590835,1.23151111,110930.0,110920.0,0.00507]
[1756842592709,1.23151111,110930.0,110920.0,4e-05]
[1756842595335,1.07389111,110930.0,110920.0,0.18538013]
[1756842595541,1.22929111,110930.0,110920.0,0.18538013]
[1756842596178,1.22629111,110930.0,110920.0,0.18538013]
[1756842596545,1.22629111,110930.0,110920.0,0.00507]
[1756842597358,1.24577692,110930.0,110920.0,0.00507]
[1756842597768,1.24577692,110930.0,110920.0,0.18538013]
[1756842598675,1.09037692,110930.0,110920.0,0.18538013]
[1756842598810,1.24565692,110930.0,110920.0,0.18538013]
[1756842599428,1.24565692,110930.0,110920.0,0.00507]
[1756842600423,0.77553848,110930.0,110920.0,4e-05]
[1756842600638,1.79377571,110930.0,110920.0,4e-05]
[1756842600864,2.02109524,110930.0,110920.0,4e-05]
[1756842601115,0.8322427,110930.0,110920.0,4e-05]
[1756842601333,1.78173946,110930.0,110920.0,4e-05]
[1756842601552,1.74924525,110930.0,110920.0,4e-05]
[1756842601774,1.85280012,110930.0,110920.0,4e-05]
[1756842602014,1.69608012,110930.0,110920.0,4e-05]
[1756842602254,1.82190697,110930.0,110920.0,4e-05]
[1756842602486,1.80037998,110930.0,110920.0,4e-05]
[1756842602710,1.79867998,110930.0,110920.0,4e-05]
[1756842602918,1.59286263,110930.0,110920.0,4e-05]
[1756842603138,1.76267357,110930.0,110920.0,4e-05]
[1756842603777,1.76271357,110930.0,110920.0,4e-05]
[1756842604010,1.75801357,110930.0,110920.0,4e-05]
[1756842604207,1.7281291,110930.0,110920.0,4e-05]
[1756842604447,1.7328291,110930.0,110920.0,4e-05]
[1756842604634,1.80997828,110930.0,110920.0,4e-05]
[1756842605102,1.62119381,110930.0,110920.0,4e-05]
[1756842605332,1.57538247,110930.0,110920.0,4e-05]
[1756842605535,1.73262247,110930.0,110920.0,4e-05]
[1756842605743,1.7311691,110930.0,110920.0,4e-05]
[1756842605930,1.75875357,110930.0,110920.0,4e-05]
[1756842606184,1.7735462,110930.0,110920.0,4e-05]
[1756842606396,1.81001752,110930.0,110920.0,4e-05]
[1756842606635,1.80839752,110930.0,110920.0,4e-05]
[1756842606846,1.77851305,110930.0,110920.0,4e-05]
[1756842607442,1.74304173,110930.0,110920.0,4e-05]
[1756842607782,1.6884787,110930.0,110920.0,0.00507]
[1756842608004,0.32100367,110930.0,110920.0,0.00507]
[1756842608215,0.32100367,110930.0,110920.0,0.18538013]
[1756842608216,0.73289111,110930.0,110920.0,0.18538013]
[1756842608431,0.89129111,110930.0,110920.0,0.18538013]
[1756842608639,1.1184363,110930.0,110920.0,0.18538013]
[1756842608869,1.1184363,110930.0,110920.0,0.00507]
[1756842609092,1.0883283,110930.0,110920.0,0.00507]
[1756842609307,1.13637301,110930.0,110920.0,0.00507]
[1756842609522,1.14137301,110930.0,110920.0,0.00507]
[1756842609730,1.14137301,110930.0,110920.0,0.18538013]
[1756842610167,0.80367914,110930.0,110920.0,0.18538013]
[1756842610626,0.41363443,110930.0,110920.0,0.18538013]
[1756842611042,0.0042,110930.0,110920.0,0.18538013]
[1756842611286,0.0042,110930.0,110920.0,0.34294013]
[1756842611527,0.0002,110930.0,110920.0,0.43485612]
[1756842611766,0.41063443,110930.0,110920.0,0.27729612]
[1756842612002,0.41263443,110930.0,110920.0,0.43481612]
[1756842612422,0.41263443,110930.0,110920.0,0.43581612]
[1756842613107,0.0022,110930.0,110920.0,0.43581612]
[1756842613961,0.0022,110930.0,110920.0,0.44600294]
[1756842614405,0.0022,110930.0,110920.0,0.28848294]
[1756842614631,0.0022,110930.0,110920.0,0.44596294]
[1756842615649,0.0022,110930.0,110920.0,0.28848294]
[1756842615850,0.0022,110930.0,110920.0,0.44588294]
[1756842616245,0.0022,110930.0,110920.0,0.27929612]
[1756842616447,0.0022,110930.0,110920.0,0.43669612]
[1756842617082,0.0022,110930.0,110920.0,0.70589612]
[1756842617807,0.0022,110930.0,110920.0,0.70585612]
[1756842618970,0.0022,110930.0,110920.0,1.14654055]
[1756842619455,0.0002,110940.0,110930.0,0.18029387]
[1756842619659,0.0002,110940.0,110930.0,0.33739112]
[1756842619865,0.0002,110940.0,110930.0,0.34114986]
[1756842620072,0.0002,110940.0,110930.0,0.49846986]
[1756842620491,0.0002,110940.0,110930.0,0.34114986]
[1756842620920,0.0002,110940.0,110930.0,0.49842986]
[1756842621136,0.0002,110940.0,110930.0,0.49942986]
[1756842623357,0.0002,110940.0,110930.0,0.49926986]
[1756842625680,0.0002,110940.0,110930.0,0.49910986]
[1756842625892,0.0002,110940.0,110930.0,0.34214986]
[1756842626068,0.41063443,110940.0,110930.0,0.34214986]
[1756842626274,0.82304886,110940.0,110930.0,0.33825387]
[1756842626982,1.00332648,110940.0,110930.0,0.001]
[1756842627197,1.00502648,110940.0,110930.0,0.33841387]
[1756842627426,1.03212833,110940.0,110930.0,0.33841387]
[1756842627652,1.03212833,110940.0,110930.0,0.18129387]
[1756842627880,1.03212833,110940.0,110930.0,0.001]
[1756842628093,1.67198761,110940.0,110930.0,0.001]
[1756842629328,1.51486761,110940.0,110930.0,0.18129387]
[1756842629529,1.64040314,110940.0,110930.0,0.18129387]
[1756842629734,1.48628314,110940.0,110930.0,0.18129387]
[1756842630150,1.48328314,110940.0,110930.0,0.18129387]
[1756842630356,1.48328314,110940.0,110930.0,0.18029387]
[1756842630714,1.48628314,110940.0,110930.0,0.18029387]
[1756842630923,1.48928314,110940.0,110930.0,0.18029387]
[1756842631541,1.33479964,110940.0,110930.0,0.18029387]
[1756842631763,0.18029387,110930.0,110920.0,0.33739007]
[1756842632023,0.85047632,110930.0,110920.0,0.33731007]
[1756842632244,0.84765923,110930.0,110920.0,0.33731007]
[1756842632479,0.66736536,110930.0,110920.0,0.33731007]
[1756842632707,0.66538536,110930.0,110920.0,0.34269007]
[1756842632925,0.66748536,110930.0,110920.0,0.34269007]
[1756842633132,0.66748536,110930.0,110920.0,0.33731007]
[1756842633336,0.84777923,110930.0,110920.0,0.18035007]
[1756842633537,0.84777923,110930.0,110920.0,0.33731007]
[1756842633744,0.84777923,110930.0,110920.0,0.33831007]
[1756842633967,0.66538536,110930.0,110920.0,0.34369007]
[1756842634173,0.84765923,110930.0,110920.0,0.33831007]
[1756842634573,0.66736536,110930.0,110920.0,0.33831007]
[1756842635792,0.63707666,110940.0,110930.0,0.18029387]
[1756842636002,1.32779964,110940.0,110930.0,0.18029387]
[1756842636511,0.48213666,110940.0,110930.0,0.18567387]
[1756842636681,1.14752202,110940.0,110930.0,0.18567387]
[1756842636886,1.14852202,110940.0,110930.0,0.18567387]
[1756842637182,1.14952202,110940.0,110930.0,0.18567387]
[1756842637398,1.03468721,110940.0,110930.0,0.18567387]
[1756842637602,1.21694483,110940.0,110930.0,0.18029387]
[1756842637817,0.69468721,110940.0,110930.0,0.18567387]
[1756842638408,0.87710483,110940.0,110930.0,0.18029387]
[1756842638571,1.23959365,110940.0,110910.0,0.46171023]
[1756842638774,0.66538536,110920.0,110910.0,0.45854023]
[1756842639072,0.66538536,110920.0,110910.0,0.61749023]
[1756842639285,0.66538536,110930.0,110920.0,0.18029605]
[1756842639499,0.66538536,110930.0,110920.0,0.18723782]
[1756842639719,0.66538536,110930.0,110920.0,0.18561605]
[1756842640143,0.66752536,110930.0,110920.0,0.34241605]
[1756842640789,0.66752536,110930.0,110920.0,0.33705605]
[1756842641010,0.66752536,110930.0,110920.0,0.33805605]
[1756842641219,0.56851857,110940.0,110930.0,0.18029387]
[1756842641431,0.66304374,110940.0,110930.0,0.18029387]
[1756842641875,0.66459374,110940.0,110930.0,0.18029387]
[1756842642354,1.3284291,110940.0,110930.0,0.18029387]
[1756842642538,1.3294291,110940.0,110930.0,0.18029387]
[1756842642676,1.3304291,110940.0,110930.0,0.18029387]
[1756842643311,1.3319791,110940.0,110920.0,0.33705605]
[1756842643553,0.66820245,110930.0,110920.0,0.33705605]
[1756842643684,0.66820245,110930.0,110920.0,0.33689605]
[1756842643685,0.84567923,110930.0,110920.0,0.33689605]
[1756842643890,0.69461976,110930.0,110920.0,0.33904605]
[1756842644108,0.69248976,110930.0,110920.0,0.34221605]
[1756842644546,0.69248976,110930.0,110920.0,0.18561605]
[1756842644918,0.69248976,110930.0,110920.0,0.34221605]
[1756842645146,0.0271044,110930.0,110920.0,0.34221605]
[1756842645545,0.0271044,110930.0,110920.0,0.40577605]
[1756842645744,0.00266918,110940.0,110930.0,0.18029387]
[1756842646116,0.00066918,110940.0,110930.0,0.18508513]
[1756842646330,0.84831216,110940.0,110930.0,0.18029387]
[1756842646542,0.66803454,110940.0,110930.0,0.33693387]
[1756842646746,0.66803454,110940.0,110930.0,0.34225387]
[1756842646946,0.66903454,110940.0,110930.0,0.34225387]
[1756842647152,0.66705454,110940.0,110930.0,0.34225387]
[1756842647534,0.66919454,110940.0,110930.0,0.33693387]
[1756842647753,0.84947216,110940.0,110930.0,0.33717387]
[1756842647963,0.84947216,110940.0,110930.0,0.15688]
[1756842648192,0.84947216,110940.0,110930.0,0.33717387]
[1756842648541,0.67019454,110940.0,110930.0,0.33717387]
[1756842648947,0.85047216,110940.0,110930.0,0.33717387]
[1756842649573,0.6125365,110940.0,110930.0,0.33717387]
[1756842649789,0.63963901,110940.0,110930.0,0.33717387]
[1756842649984,0.75249382,110940.0,110930.0,0.15676]
[1756842650198,0.75404382,110940.0,110930.0,0.33705387]
[1756842650399,0.75249382,110940.0,110930.0,0.15676]
[1756842650601,0.75249382,110940.0,110930.0,0.33705387]
[1756842650802,0.75220156,110940.0,110930.0,0.15676]
[1756842651420,0.75220156,110940.0,110930.0,0.33705387]
[1756842651894,0.75220156,110940.0,110930.0,0.15676]
[1756842653066,0.02947943,110940.0,110930.0,0.34399513]
[1756842653309,0.02947943,110940.0,110930.0,0.34237387]
[1756842653531,0.84995061,110940.0,110930.0,0.34237387]
[1756842654007,0.41261251,110940.0,110930.0,0.34237387]
[1756842654213,0.8228481,110940.0,110930.0,0.34237387]
[1756842654635,1.00510572,110940.0,110930.0,0.33896387]
[1756842654854,1.00510572,110940.0,110930.0,0.33681387]
[1756842655238,1.41334131,110940.0,110920.0,0.18346605]
[1756842655457,0.36179336,110940.0,110930.0,0.33781387]
[1756842655683,0.2306772,110940.0,110930.0,0.33681387]
[1756842656040,0.05039958,110940.0,110930.0,0.33681387]
[1756842656276,0.03229759,110940.0,110930.0,0.34213387]
[1756842656657,0.45977927,110940.0,110930.0,0.34213387]
[1756842656859,0.45696244,110940.0,110930.0,0.34213387]
[1756842658277,0.63724006,110940.0,110930.0,0.34213387]
[1756842658474,0.45894244,110940.0,110930.0,0.33681387]
[1756842658680,0.45696244,110940.0,110930.0,0.34213387]
[1756842659583,0.45596244,110940.0,110930.0,0.34213387]
[1756842659994,0.45596244,110940.0,110930.0,0.34313387]
[1756842661037,0.45496244,110940.0,110930.0,0.34313387]
[1756842661466,0.00037692,110940.0,110930.0,0.34313387]
[1756842662973,0.00037692,110940.0,110930.0,0.34317387]
[1756842663622,0.4278586,110940.0,110930.0,0.34305387]
[1756842664522,0.00037692,110940.0,110930.0,0.34305387]
[1756842667674,0.00037692,110940.0,110930.0,0.43496986]
[1756842669197,0.00037692,110940.0,110930.0,0.43484986]
[1756842670865,0.00037692,110940.0,110930.0,0.27856986]
[1756842671082,0.00037692,110940.0,110930.0,0.34277387]
[1756842671287,0.00037692,110940.0,110930.0,0.18665387]
[1756842671486,0.00037692,110940.0,110930.0,0.34281387]
[1756842671885,0.4278586,110940.0,110930.0,0.18665387]
[1756842672093,0.4278586,110940.0,110930.0,0.34281387]
[1756842673055,0.00037692,110940.0,110930.0,0.34281387]
[1756842674316,0.4298386,110940.0,110930.0,0.18665387]
[1756842674568,0.4298386,110940.0,110930.0,0.33741387]
[1756842675242,0.61011622,110940.0,110930.0,0.33741387]
[1756842675448,0.4298386,110940.0,110930.0,0.33741387]
[1756842675672,1.00324984,110940.0,110930.0,0.33741387]
[1756842676388,0.82297222,110940.0,110930.0,0.34262072]
[1756842676594,0.82297222,110940.0,110930.0,0.34049072]
[1756842676814,0.82297222,110940.0,110930.0,0.33717072]
[1756842677157,0.82297222,110940.0,110930.0,0.34250072]
[1756842677624,0.82297222,110940.0,110930.0,0.34037072]
[1756842677782,0.82297222,110940.0,110930.0,0.34250072]
[1756842678210,0.85007392,110940.0,110930.0,0.34250072]
[1756842678450,0.43976627,110940.0,110930.0,0.34250072]
[1756842678662,0.85007392,110940.0,110930.0,0.34250072]
[1756842678870,0.85007392,110940.0,110930.0,0.34037072]
[1756842679074,1.03035154,110940.0,110930.0,0.33717072]
[1756842679279,1.03035154,110940.0,110930.0,0.33709072]
[1756842679483,0.85007392,110940.0,110930.0,0.33709072]
[1756842680230,1.03035154,110940.0,110930.0,0.33709072]
[1756842680973,1.46329801,110940.0,110930.0,0.00104]
[1756842681217,1.92318256,110940.0,110930.0,0.00104]
[1756842681439,1.94263584,110940.0,110930.0,0.00104]
[1756842681895,1.94263584,110940.0,110930.0,0.00057598]
[1756842682792,1.96941584,110940.0,110930.0,4e-05]
[1756842682993,2.12657584,110940.0,110930.0,4e-05]
[1756842683213,2.12757584,110940.0,110930.0,4e-05]
[1756842683431,2.16892602,110940.0,110930.0,4e-05]
[1756842683665,2.16792602,110940.0,110930.0,4e-05]
[1756842684106,2.16992602,110940.0,110930.0,4e-05]
[1756842684321,2.01276602,110940.0,110930.0,4e-05]
[1756842684552,2.17084602,110940.0,110930.0,4e-05]
[1756842684791,1.98798602,110940.0,110930.0,4e-05]
[1756842685009,2.14406602,110940.0,110930.0,4e-05]
[1756842685943,3.51800876,110940.0,110930.0,4e-05]
[1756842686386,2.28708581,110940.0,110930.0,4e-05]
[1756842687267,2.26276201,110940.0,110930.0,4e-05]
[1756842687458,2.67306966,110940.0,110930.0,4e-05]
[1756842687897,2.26276201,110940.0,110930.0,4e-05]
[1756842688112,2.32632201,110940.0,110930.0,4e-05]
[1756842688331,3.55724496,110940.0,110930.0,4e-05]
[1756842688571,3.58156876,110940.0,110930.0,4e-05]
[1756842688796,3.60730478,110940.0,110930.0,4e-05]
[1756842689443,3.52170317,110940.0,110930.0,4e-05]
[1756842690096,3.52170305,110940.0,110930.0,4e-05]
[1756842690305,3.51970305,110940.0,110930.0,4e-05]
[1756842690481,3.51950305,110940.0,110930.0,4e-05]
[1756842690644,3.52350305,110940.0,110930.0,4e-05]
[1756842691053,3.52150305,110940.0,110930.0,4e-05]
[1756842691272,3.61637904,110940.0,110930.0,4e-05]
[1756842695439,3.46053904,110940.0,110930.0,4e-05]
[1756842695644,3.61629904,110940.0,110930.0,4e-05]
[1756842696678,3.51053904,110940.0,110930.0,4e-05]
[1756842696882,3.66613904,110940.0,110930.0,4e-05]
[1756842697697,3.51053904,110940.0,110930.0,4e-05]
[1756842697908,3.66617904,110940.0,110930.0,4e-05]
[1756842698258,3.41862305,110940.0,110930.0,4e-05]
[1756842698454,3.57422305,110940.0,110930.0,4e-05]
[1756842698718,3.54744305,110940.0,110930.0,4e-05]
[1756842700356,3.57982439,110940.0,110930.0,4e-05]
[1756842701504,3.42422439,110940.0,110930.0,4e-05]